bitfinex/quotes_ETHUSD_20241101
["timestamp","ask_amount","ask_price","bid_price","bid_amount"]
[1730443793368,1.49612534,2511.7,2511.4,0.19930609]
[1730443793585,1.49612534,2511.7,2511.5,0.19930609]
[1730443793874,1.49612534,2511.7,2511.2,3.98215]
[1730443794049,1.49612534,2511.5,2511.3,0.19931461]
[1730443794233,1.49612534,2511.5,2511.4,0.19931461]
[1730443797058,1.49612534,2511.7,2511.4,1.01564607]
[1730443797261,1.49612534,2511.7,2511.5,4.18095216]
[1730443797460,1.49612534,2511.7,2511.3,3.98192]
[1730443797754,1.49612534,2511.5,2511.4,0.19929936]
[1730443798370,2.24852534,2511.5,2511.4,0.19929936]
[1730443798573,2.47337787,2511.5,2511.1,3.98221]
[1730443798780,1.49612534,2511.3,2511.2,0.19932622]
[1730443800383,6.25225534,2511.3,2510.8,4.28097185]
[1730443800541,1.49612534,2511.1,2510.9,0.19934586]
[1730443800745,1.49612534,2511.1,2511.0,0.19934586]
[1730443800964,1.49612534,2511.1,2511.0,0.19934337]
[1730443807697,1.49612534,2511.1,2510.8,3.98279]
[1730443808003,1.49612534,2511.1,2511.0,0.19934408]
[1730443808772,2.12136387,2511.1,2511.0,0.19934408]
[1730443809384,1.49612534,2511.1,2511.0,0.19934408]
[1730443811907,1.49612534,2511.1,2511.0,0.19934606]
[1730443815428,1.49612534,2511.1,2511.0,0.19934657]
[1730443815997,2.31232534,2511.1,2511.0,0.19934657]
[1730443816200,9.29463534,2511.1,2511.0,0.19934657]
[1730443816410,3.98264,2510.9,2510.6,0.29841938]
[1730443816590,1.49612534,2510.8,2510.7,0.19936906]
[1730443816792,1.49612534,2510.8,2510.7,0.32397723]
[1730443817718,6.28141534,2510.8,2510.7,0.32397723]
[1730443817948,7.30782087,2510.8,2510.7,0.12460817]
[1730443818347,3.32503087,2510.8,2510.7,0.12460817]
[1730443818719,7.30782087,2510.8,2510.7,0.12460817]
[1730443822216,3.98296,2510.7,2510.5,0.19938794]
[1730443822422,0.7534,2510.5,2510.1,1.34842182]
[1730443822623,1.49612534,2510.4,2510.2,0.57324967]
[1730443822877,1.49612534,2510.4,2510.3,0.12462105]
[1730443824549,1.49612534,2510.6,2510.3,0.12462105]
[1730443824863,1.49612534,2510.6,2510.4,0.12462105]
[1730443825075,1.49612534,2510.6,2510.5,0.12462105]
[1730443826233,1.49612534,2510.6,2510.5,0.12461731]
[1730443830118,1.49612534,2511.0,2510.5,3.98314]
[1730443830277,8.47860534,2511.0,2510.6,0.12461436]
[1730443830474,8.47860534,2511.0,2510.7,0.12461436]
[1730443830475,1.49612534,2510.8,2510.7,0.12461436]
[1730443830678,1.49612534,2511.0,2510.7,0.12461436]
[1730443831015,1.49612534,2511.0,2510.8,0.12461436]
[1730443831219,1.49612534,2511.0,2510.7,0.7562]
[1730443831513,1.49612534,2511.0,2510.8,0.12459921]
[1730443831726,1.49612534,2511.0,2510.9,0.12459921]
[1730443831881,1.49612534,2511.0,2510.9,0.19730056]
[1730443832082,2.52056887,2511.0,2510.9,0.12459921]
[1730443832282,3.98267,2510.9,2510.5,0.7562]
[1730443832475,6.26253534,2510.8,2510.6,0.12460845]
[1730443832678,6.26253534,2510.8,2510.7,0.12460845]
[1730443833127,2.27972534,2510.8,2510.7,0.12460845]
[1730443833303,1.49612534,2510.8,2510.7,0.12460605]
[1730443835326,4.80634,2511.0,2510.7,0.12460605]
[1730443835327,6.30246534,2511.0,2510.7,0.12460605]
[1730443835620,5.47866534,2511.0,2510.8,0.12460605]
[1730443835793,1.49612534,2511.0,2510.7,0.7788]
[1730443835997,1.49612534,2511.0,2510.8,0.12460531]
[1730443836212,1.49612534,2511.0,2510.7,0.7788]
[1730443836213,5.47859534,2511.0,2510.7,0.7788]
[1730443836400,5.47859534,2511.0,2510.8,0.12460532]
[1730443836599,5.47859534,2511.0,2510.7,0.7788]
[1730443836799,5.47859534,2511.0,2510.8,0.12460532]
[1730443837023,5.47859534,2511.0,2510.7,0.7788]
[1730443837239,5.47859534,2511.0,2510.8,0.12460533]
[1730443837438,5.47859534,2511.0,2510.7,0.7788]
[1730443837628,5.47859534,2511.0,2510.8,0.12460537]
[1730443837840,5.47859534,2511.0,2510.7,0.7788]
[1730443838141,1.49612534,2511.0,2510.8,0.12460533]
[1730443838447,1.49612534,2511.0,2510.7,0.7788]
[1730443838598,1.49612534,2511.0,2510.8,0.12460531]
[1730443838803,1.49612534,2511.0,2510.8,0.07209679]
[1730443841107,1.49612534,2511.0,2510.9,0.12460633]
[1730443841313,1.49612534,2511.0,2510.9,0.19669819]
[1730443844219,1.49612534,2511.0,2510.9,0.07209186]
[1730443844418,1.49612534,2511.0,2510.9,0.19669188]
[1730443847861,10.22918487,2511.0,2510.9,0.19669188]
[1730443848157,10.22918487,2511.0,2509.9,0.02987951]
[1730443848158,4.77813,2510.3,2509.9,0.02987951]
[1730443848358,1.49612534,2510.1,2510.0,0.37389279]
[1730443848518,1.49612534,2510.1,2510.0,0.12463093]
[1730443850260,5.48002534,2510.1,2510.0,0.12464507]
[1730443851530,5.48002534,2510.1,2509.7,0.29805679]
[1730443851728,1.49612534,2509.9,2509.6,4.75099]
[1730443852158,1.49612534,2509.9,2509.6,0.7664]
[1730443852342,5.48034534,2509.9,2509.6,0.7664]
[1730443852531,1.49612534,2509.7,2509.3,4.78454]
[1730443852737,1.49612534,2509.7,2509.3,5.93254778]
[1730443852932,1.49612534,2509.7,2509.4,0.37396507]
[1730443853147,1.49612534,2509.7,2509.5,0.37396507]
[1730443853338,1.49612534,2509.7,2509.6,0.12465502]
[1730443853769,1.49612534,2509.7,2509.6,0.18472032]
[1730443853950,5.48065534,2509.7,2509.6,0.18472032]
[1730443854152,7.32508887,2509.7,2509.6,0.18472032]
[1730443854360,7.32508887,2509.7,2509.1,4.78489]
[1730443854535,1.49612534,2509.5,2509.2,0.12466954]
[1730443854734,1.49612534,2509.5,2509.3,0.12466954]
[1730443854935,2.31242534,2509.7,2509.4,0.12466954]
[1730443855135,1.49612534,2509.7,2509.5,0.12466954]
[1730443855378,1.49612534,2509.7,2509.2,3.98524]
[1730443855532,1.49612534,2509.7,2509.3,0.12466774]
[1730443855869,1.49612534,2509.7,2509.4,0.12466774]
[1730443856041,1.49612534,2509.7,2509.5,0.93506774]
[1730443856358,1.49612534,2509.7,2509.5,0.8104]
[1730443858156,4.78099,2509.6,2509.0,4.79578]
[1730443858356,1.49612534,2509.4,2509.1,0.12467346]
[1730443858556,5.48116534,2509.4,2509.2,0.12467346]
[1730443858740,9.46626534,2509.4,2509.0,0.8102]
[1730443859079,9.46626534,2509.4,2508.6,4.23551301]
[1730443859080,3.98555,2509.1,2508.6,5.04571301]
[1730443859235,1.49612534,2508.9,2508.7,0.12469505]
[1730443859563,1.49612534,2508.9,2508.6,4.79638]
[1730443859755,1.49612534,2508.9,2508.7,0.12469763]
[1730443859959,1.49612534,2508.9,2508.8,0.12469763]
[1730443860138,1.49612534,2508.9,2508.7,0.12469763]
[1730443860340,1.49612534,2508.9,2508.6,0.8102]
[1730443860573,3.35029279,2509.1,2508.6,0.8102]
[1730443860931,3.98568,2509.0,2508.6,0.8102]
[1730443861487,3.98568,2509.0,2508.6,0.93490622]
[1730443861989,3.98568,2509.0,2508.6,0.8102]
[1730443862166,3.98568,2509.0,2508.5,4.11109622]
[1730443862167,3.98613,2508.7,2508.5,0.12470622]
[1730443862378,3.98598,2508.8,2508.2,4.17125699]
[1730443862680,3.98598,2508.8,2508.2,4.04654495]
[1730443863246,4.10639279,2508.9,2508.2,4.04654495]
[1730443863448,4.10639279,2508.9,2508.4,3.98649]
[1730443863841,4.10639279,2508.9,2508.2,8.03337495]
[1730443864141,3.98598,2508.8,2508.3,3.98672]
[1730443864364,4.10639279,2508.9,2508.2,0.93895245]
[1730443864543,4.10639279,2508.9,2508.4,3.98651]
[1730443866354,8.09229279,2508.9,2508.4,3.98651]
[1730443866554,4.10639279,2508.9,2508.4,3.98651]
[1730443866886,4.10639279,2508.9,2508.5,0.8223]
[1730443867040,3.0,2509.1,2508.6,3.9862]
[1730443867241,3.0,2509.1,2508.7,3.98611]
[1730443867436,3.0,2509.1,2508.6,8.85985139]
[1730443867648,3.0,2509.1,2508.6,4.87365139]
[1730443867854,0.827,2509.0,2508.5,3.9864]
[1730443868050,0.827,2509.0,2508.6,4.80036]
[1730443868252,6.35029279,2509.1,2508.6,4.80036]
[1730443868442,10.33580279,2509.1,2508.6,4.80036]
[1730443868677,10.33580279,2509.1,2508.7,0.05540049]
[1730443869594,6.35029279,2509.1,2508.7,0.05540049]
[1730443870883,10.33587279,2509.1,2508.7,0.05540049]
[1730443872868,3.98566,2509.0,2508.7,0.05540049]
[1730443873197,3.98582,2508.9,2508.7,0.05540049]
[1730443873367,3.98596,2508.8,2508.7,0.05540049]
[1730443873565,3.98596,2508.8,2508.4,0.7545]
[1730443873765,3.98596,2508.8,2508.7,0.05543962]
[1730443873966,4.75667,2508.9,2508.4,4.7411]
[1730443874496,3.986,2508.8,2508.5,0.05544949]
[1730443875059,8.21053879,2508.8,2508.5,0.05544949]
[1730443875394,3.9862,2508.7,2508.2,0.86697495]
[1730443875881,3.9862,2508.7,2508.3,0.05545581]
[1730443876080,3.9863,2508.6,2508.3,0.05545581]
[1730443876277,4.7807,2508.6,2508.3,0.05545581]
[1730443876663,8.94409207,2508.6,2508.3,0.05545581]
[1730443877066,3.9866,2508.4,2508.3,0.05545581]
[1730443878006,7.33689279,2508.4,2508.3,0.05545581]
[1730443878301,8.08909279,2508.4,2508.2,0.05977495]
[1730443878599,4.79566928,2508.3,2508.2,0.05977495]
[1730443879167,0.8148,2508.2,2507.6,3.98777]
[1730443879491,3.98709,2508.1,2507.6,3.98777]
[1730443879996,8.15216279,2508.2,2507.6,7.97554]
[1730443880294,8.15216279,2508.2,2507.7,3.98771]
[1730443880970,8.15210279,2508.2,2507.6,3.98777]
[1730443881283,8.15210279,2508.2,2507.7,3.9877]
[1730443885284,8.10983279,2507.8,2507.2,3.98846]
[1730443885620,12.09751279,2507.8,2507.3,0.05053835]
[1730443885911,12.09751279,2507.8,2507.2,3.98846]
[1730443885912,8.10983279,2507.8,2507.2,3.98846]
[1730443886115,4.78723,2507.7,2507.4,0.05053341]
[1730443886424,4.78723,2507.7,2507.2,3.9885]
[1730443886608,4.78723,2507.7,2507.5,0.05052846]
[1730443886925,4.78723,2507.7,2507.6,0.05052352]
[1730443887085,3.98788,2507.6,2507.1,3.98851]
[1730443887285,3.98788,2507.6,2507.2,0.05054329]
[1730443887587,0.7995,2507.7,2507.2,4.03904329]
[1730443887897,0.7995,2507.7,2507.2,4.16381389]
[1730443888288,4.78734,2507.7,2507.2,0.17531389]
[1730443888490,4.78734,2507.7,2507.2,0.175314]
[1730443888906,4.78734,2507.7,2507.2,0.05054329]
[1730443889118,0.7995,2507.7,2507.2,4.1638033]
[1730443889298,0.7995,2507.7,2507.3,0.12476879]
[1730443889299,4.78725,2507.7,2507.3,0.12476879]
[1730443889620,4.78725,2507.7,2507.4,0.05053341]
[1730443890190,4.78725,2507.7,2507.1,3.98851]
[1730443890392,4.78725,2507.7,2507.5,0.05052846]
[1730443890597,1.21251828,2507.6,2507.3,0.12477061]
[1730443890812,4.78725,2507.7,2507.6,0.05052352]
[1730443891124,4.78725,2507.7,2507.3,0.12477009]
[1730443891344,4.78725,2507.7,2507.6,0.05052352]
[1730443891644,4.78725,2507.7,2507.2,4.18811202]
[1730443891802,4.78725,2507.7,2507.6,0.05069055]
[1730443892130,3.98789,2507.6,2507.4,0.12477073]
[1730443892343,7.33818279,2507.6,2507.1,3.98851]
[1730443892509,7.33818279,2507.6,2507.2,0.32440892]
[1730443892710,7.33818279,2507.6,2507.3,0.12477266]
[1730443893019,7.33818279,2507.6,2507.4,0.12477266]
[1730443893197,3.98812,2507.5,2506.9,4.81631]
[1730443893398,0.7551,2507.3,2507.0,0.5739617]
[1730443893599,7.33881279,2507.2,2507.1,0.32304583]
[1730443893843,4.55852107,2507.2,2507.1,0.12477422]
[1730443893998,8.54703107,2507.2,2507.1,0.12477422]
[1730443896033,8.54703107,2507.2,2507.1,0.12479716]
[1730443897210,4.55852107,2507.2,2506.8,0.0598209]
[1730443897415,4.55852107,2507.2,2506.9,0.12479833]
[1730443897620,3.35029279,2507.2,2507.0,0.12479833]
[1730443897821,4.74347,2507.3,2507.1,0.12479833]
[1730443898144,4.74347,2507.3,2506.8,0.0598209]
[1730443898444,3.98863,2507.2,2506.9,0.12479356]
[1730443898609,3.98863,2507.2,2507.0,0.12479356]
[1730443898828,5.19686928,2507.2,2507.1,0.12479356]
[1730443899040,0.7551,2507.3,2507.1,0.12479356]
[1730443899240,3.98816,2507.5,2507.2,0.12478712]
[1730443899241,4.76736,2507.5,2507.2,0.12478712]
[1730443899453,4.76734,2507.5,2506.9,7.97776]
[1730443899626,4.76734,2507.5,2507.3,0.05096126]
[1730443899958,0.81176328,2507.4,2506.9,7.97776]
[1730443900165,4.76734,2507.5,2506.9,7.97776]
[1730443900323,8.75548,2507.5,2507.0,0.12478593]
[1730443900675,8.75548,2507.5,2507.1,0.12478593]
[1730443900827,8.75548,2507.5,2507.2,0.12478593]
[1730443901022,4.76734,2507.5,2506.8,0.30939277]
[1730443901332,3.98837,2507.3,2506.9,0.12478601]
[1730443901658,3.98837,2507.3,2507.0,0.12478601]
[1730443901825,3.98837,2507.3,2507.1,0.12478601]
[1730443902025,3.98837,2507.3,2506.8,4.29849277]
[1730443902226,3.98837,2507.3,2506.9,0.12478756]
[1730443902488,3.98837,2507.3,2507.0,0.12478756]
[1730443902747,3.98837,2507.3,2507.1,0.12478756]
[1730443902951,3.98837,2507.3,2506.8,4.29849277]
[1730443903151,3.98837,2507.3,2506.9,0.12478683]
[1730443903462,3.98837,2507.3,2506.8,4.29849277]
[1730443903463,3.98837,2507.3,2507.0,0.12478683]
[1730443903664,3.98837,2507.3,2507.1,0.12478683]
[1730443903965,4.94511733,2507.3,2506.9,0.19965938]
[1730443904171,4.94511733,2507.3,2507.0,0.32444652]
[1730443904366,4.94511733,2507.3,2507.1,0.12478714]
[1730443904538,4.94511733,2507.3,2506.9,0.19965977]
[1730443904743,4.94511733,2507.3,2507.0,0.12478731]
[1730443905068,4.94511733,2507.3,2507.1,0.12478731]
[1730443905268,0.91071734,2507.2,2506.9,4.18863981]
[1730443905438,4.94511733,2507.3,2507.0,0.12478698]
[1730443905649,4.94511733,2507.3,2507.1,0.12478698]
[1730443905835,4.94511733,2507.3,2506.9,3.98898]
[1730443906039,4.94511733,2507.3,2507.0,0.12478725]
[1730443906371,4.94511733,2507.3,2506.8,0.0598209]
[1730443906541,4.94511733,2507.3,2506.9,0.12478767]
[1730443906868,4.94511733,2507.3,2507.0,0.12478767]
[1730443907036,4.94511733,2507.3,2506.8,0.0598209]
[1730443907237,4.94511733,2507.3,2506.9,0.12478882]
[1730443907531,4.94511733,2507.3,2506.8,4.0489509]
[1730443907732,4.94511733,2507.3,2506.9,0.12478784]
[1730443907947,4.94511733,2507.3,2506.8,4.0489509]
[1730443908151,4.94511733,2507.3,2506.9,0.12478865]
[1730443908463,8.93358733,2507.3,2506.8,0.0598209]
[1730443908673,8.93356733,2507.3,2506.9,0.12478822]
[1730443908861,4.94511733,2507.3,2506.8,0.0598209]
[1730443909178,4.94511733,2507.3,2506.9,0.12478887]
[1730443909469,4.94511733,2507.3,2506.9,0.12478742]
[1730443909677,4.94511733,2507.3,2506.8,4.0488609]
[1730443909835,4.94511733,2507.3,2506.9,0.12478749]
[1730443910173,4.94511733,2507.3,2506.8,4.0488609]
[1730443910378,4.94511733,2507.3,2506.9,4.11376701]
[1730443910534,4.94511733,2507.3,2506.9,3.98898]
[1730443911265,3.98837,2507.3,2506.9,3.98898]
[1730443911583,4.78654,2507.8,2507.2,3.98838]
[1730443912084,4.78654,2507.8,2507.3,3.9883]
[1730443912698,4.78654,2507.8,2507.2,3.98851]
[1730443912838,4.78654,2507.8,2507.2,3.98841]
[1730443913033,4.78654,2507.8,2507.3,0.7557]
[1730443913781,3.7989,2507.8,2507.4,0.05115898]
[1730443914338,7.78649,2507.8,2507.4,0.05115898]
[1730443914781,3.98774,2507.7,2507.4,0.05115898]
[1730443915644,7.97561,2507.7,2507.4,0.05115898]
[1730443915851,3.98774,2507.7,2507.4,0.05115898]
[1730443916557,3.98793,2507.6,2507.4,0.05115898]
[1730443916767,3.98774,2507.7,2507.4,0.05115898]
[1730443916972,7.97555,2507.7,2507.3,0.12477]
[1730443917142,3.98774,2507.7,2507.5,0.05115404]
[1730443917346,3.98787,2507.6,2507.2,0.12477034]
[1730443917543,3.98787,2507.6,2507.3,0.12477034]
[1730443917787,4.78321,2507.4,2507.0,0.19963173]
[1730443917959,4.78321,2507.4,2506.9,4.78468]
[1730443918962,4.78321,2507.4,2507.0,3.98882]
[1730443919849,0.795,2507.4,2507.0,3.98882]
[1730443921458,0.795,2507.4,2506.9,4.78468]
[1730443921682,0.795,2507.4,2506.9,8.77357]
[1730443921982,0.795,2507.4,2506.9,4.78468]
[1730443922149,0.795,2507.4,2506.9,8.77357]
[1730443922548,0.795,2507.4,2507.0,3.98882]
[1730443922888,0.8076,2507.6,2507.3,3.98834]
[1730443923255,0.8076,2507.9,2507.5,3.98791]
[1730443923873,0.8076,2507.9,2507.4,7.97629]
[1730443924080,0.8076,2507.9,2507.5,3.98803]
[1730443924590,0.8076,2507.9,2507.4,3.9881]
[1730443924792,4.7951,2507.9,2507.4,3.9881]
[1730443925163,0.8076,2507.9,2507.4,3.9881]
[1730443925373,6.98687,2508.3,2507.7,3.98759]
[1730443925571,0.7923,2508.2,2507.7,0.7713]
[1730443925765,4.77923,2508.2,2507.7,4.759]
[1730443926598,3.98708,2508.1,2507.6,3.98773]
[1730443927556,4.77933,2508.2,2507.5,1.05663361]
[1730443927788,4.75741,2508.0,2507.5,4.28596361]
[1730443927991,4.75741,2508.0,2507.5,0.29803361]
[1730443927992,3.98752,2507.9,2507.5,0.29803361]
[1730443928179,0.477933,2508.1,2507.3,0.298123]
[1730443928180,4.75801,2507.6,2507.3,0.298123]
[1730443928381,4.75801,2507.6,2507.2,0.298123]
[1730443928688,3.98811,2507.5,2507.4,0.04930467]
[1730443928899,4.862722,2507.5,2507.3,0.0443344]
[1730443929074,4.862722,2507.5,2507.4,0.04432946]
[1730443929471,0.874612,2507.5,2507.1,0.298123]
[1730443929696,8.74602,2507.6,2507.4,0.04432946]
[1730443929866,3.98803,2507.5,2507.1,0.298123]
[1730443930718,3.98783,2507.7,2507.2,5.100453]
[1730443930866,0.7604,2507.6,2507.2,4.80233]
[1730443931498,0.7604,2507.6,2507.2,5.10052442]
[1730443931677,0.7604,2507.6,2507.2,8.79076]
[1730443931882,0.7604,2507.6,2507.2,4.80233]
[1730443932396,0.7604,2507.6,2507.2,5.10059721]
[1730443932694,0.7604,2507.6,2507.2,4.80233]
[1730443932920,0.7604,2507.6,2507.2,4.80231]
[1730443933059,0.7604,2507.6,2507.2,3.98841]
[1730443933585,0.7604,2507.6,2506.9,1.31202422]
[1730443933586,0.7667,2507.5,2506.9,0.02991856]
[1730443933789,0.7667,2507.5,2507.0,0.29829824]
[1730443933790,3.98819,2507.4,2507.0,0.29829824]
[1730443934113,3.98883,2507.0,2506.9,0.29829824]
[1730443934292,3.98899,2506.9,2506.8,0.0598209]
[1730443934470,5.96517128,2506.9,2506.8,0.0598209]
[1730443935890,5.96517128,2506.9,2506.8,0.09697089]
[1730443937721,5.96517128,2506.9,2506.8,0.0598209]
[1730443938013,8.96517128,2506.9,2506.8,0.0598209]
[1730443938700,3.98965,2506.5,2505.9,7.98098]
[1730443938880,4.782,2506.4,2505.9,0.02994323]
[1730443939073,4.782,2506.4,2506.0,0.03718956]
[1730443939074,3.99004,2506.3,2506.0,0.03718956]
[1730443939612,3.99004,2506.3,2506.1,0.03718461]
[1730443939910,4.782,2506.4,2505.9,3.99053]
[1730443940111,0.7921,2506.4,2506.2,0.03717967]
[1730443940320,3.9909,2505.7,2505.3,1.64344835]
[1730443940500,3.99074,2505.8,2505.3,0.7787]
[1730443940701,4.78277,2505.9,2505.3,0.7787]
[1730443940890,0.7921,2505.9,2505.3,0.7787]
[1730443941093,3.99102,2505.7,2505.1,5.0201543]
[1730443941293,3.99102,2505.7,2505.2,3.99167]
[1730443941491,3.35029279,2505.8,2505.2,3.99167]
[1730443942034,3.7921,2505.9,2505.2,3.99169]
[1730443942231,0.7988,2506.2,2505.6,3.9909]
[1730443942513,1.276733,2506.2,2505.8,3.99065]
[1730443942676,1.276733,2506.2,2505.8,7.98128]
[1730443942878,0.7988,2506.2,2505.9,3.99048]
[1730443943683,0.7988,2506.2,2506.0,0.03506003]
[1730443944798,0.7988,2506.2,2505.8,4.78613]
[1730443944998,0.7988,2506.2,2506.1,0.03505508]
[1730443945311,0.7988,2506.2,2505.8,3.99061]
[1730443945511,1.61270328,2506.2,2505.6,8.75252]
[1730443945722,1.61270328,2506.2,2505.9,0.03506498]
[1730443945928,1.61270328,2506.2,2505.8,3.99072]
[1730443946231,0.7988,2506.2,2505.9,0.03506498]
[1730443946427,0.7988,2506.2,2505.9,4.02563498]
[1730443946788,0.7988,2506.2,2505.9,0.03506498]
[1730443949925,0.7988,2506.2,2505.6,8.75237]
[1730443950087,4.78892,2506.2,2506.0,0.03506003]
[1730443950291,6.00182128,2506.2,2505.7,3.99079]
[1730443950499,4.78892,2506.2,2506.1,0.03505508]
[1730443950702,4.78892,2506.2,2505.6,4.76141]
[1730443950911,8.13921279,2506.2,2506.1,0.03505508]
[1730443951188,10.34041279,2506.2,2505.4,3.99128]
[1730443951395,0.7877,2505.9,2505.4,3.99127]
[1730443951598,0.7877,2505.9,2505.4,4.469657]
[1730443951803,0.7877,2505.9,2505.4,3.99127]
[1730443952195,3.99076,2505.8,2505.3,0.7926]
[1730443952400,7.98161,2505.8,2505.3,0.7926]
[1730443952617,3.99076,2505.8,2505.3,0.7926]
[1730443953148,1.21192728,2505.8,2505.1,1.0517143]
[1730443953299,3.0,2505.5,2505.1,0.2682143]
[1730443953498,3.0,2505.6,2505.1,4.2599543]
[1730443953717,3.8258,2505.7,2505.2,3.99169]
[1730443954196,0.8258,2505.7,2505.3,3.99152]
[1730443954391,0.8258,2505.7,2505.3,0.7835]
[1730443955294,4.81671,2505.7,2505.3,0.7835]
[1730443955495,0.8258,2505.7,2505.3,0.7835]
[1730443956220,3.99083,2505.8,2505.3,4.77492]
[1730443956421,0.8051,2505.9,2505.4,3.99128]
[1730443957097,0.8051,2505.9,2505.5,3.99118]
[1730443958334,0.7841,2506.1,2505.7,3.99088]
[1730443958631,4.77406,2506.3,2505.8,3.9907]
[1730443959035,4.77406,2506.3,2505.7,4.79041]
[1730443959036,0.7841,2506.0,2505.5,3.9911]
[1730443959216,4.77453,2506.0,2505.5,7.98223]
[1730443959415,0.7841,2506.0,2505.6,3.99095]
[1730443959630,3.9902,2506.2,2505.7,3.99088]
[1730443959805,8.12459279,2506.2,2505.6,0.7996]
[1730443960006,8.93705207,2506.2,2505.6,0.7996]
[1730443960343,3.99043,2506.0,2505.3,4.49584343]
[1730443960635,7.98099,2506.0,2505.4,4.79085]
[1730443960841,3.99043,2506.0,2505.4,4.79085]
[1730443961623,3.99043,2506.0,2505.5,3.99114]
[1730443962137,9.57700928,2506.2,2505.4,4.79085]
[1730443962340,3.99029,2506.1,2505.5,3.99107]
[1730443962644,3.99044,2506.0,2505.4,9.31165634]
[1730443963004,3.99044,2506.0,2505.5,3.99113]
[1730443963307,4.7743,2506.2,2505.6,3.99097]
[1730443963817,8.76449,2506.2,2505.6,3.99097]
[1730443964339,9.640939,2506.2,2505.6,3.99097]
[1730443964840,9.640949,2506.2,2505.6,3.99097]
[1730443965034,5.650739,2506.2,2505.6,3.99097]
[1730443965241,9.640929,2506.2,2505.6,3.99097]
[1730443965437,9.640949,2506.2,2505.6,3.99097]
[1730443965741,5.650739,2506.2,2505.6,3.99097]
[1730443966124,9.640939,2506.2,2505.6,3.99097]
[1730443966534,4.79105,2506.4,2505.6,0.8149]
[1730443966717,4.79105,2506.4,2505.9,3.99056]
[1730443966924,3.98995,2506.3,2505.7,3.99075]
[1730443967136,3.98995,2506.3,2505.8,3.99073]
[1730443967520,3.98995,2506.3,2505.7,3.99075]
[1730443967736,3.98995,2506.3,2505.8,3.99072]
[1730443967953,4.79105,2506.4,2505.8,3.99072]
[1730443968453,3.98997,2506.3,2505.8,3.99074]
[1730443968806,3.98997,2506.3,2505.7,3.99075]
[1730443969013,3.98997,2506.3,2505.7,7.98156]
[1730443969239,3.98997,2506.3,2505.7,3.99075]
[1730443969544,3.98997,2506.3,2505.7,7.98155]
[1730443969745,3.98997,2506.3,2505.7,3.99075]
[1730443970124,3.99019,2506.2,2505.7,3.99075]
[1730443971244,0.8109,2506.1,2505.6,4.80594]
[1730443972258,0.8109,2506.1,2505.5,3.99111]
[1730443972439,3.99043,2506.0,2505.5,7.98223]
[1730443972645,3.99043,2506.0,2505.5,3.99111]
[1730443972950,4.80158,2505.9,2505.3,3.99142]
[1730443973552,3.99078,2505.8,2505.3,3.99142]
[1730443973715,4.80158,2505.9,2505.4,3.99137]
[1730443974350,4.80158,2505.9,2505.3,3.99142]
[1730443974545,3.99077,2505.8,2505.3,3.99142]
[1730443974958,4.80158,2505.9,2505.3,7.98285]
[1730443975278,3.99075,2505.8,2505.3,3.99142]
[1730443975429,4.80158,2505.9,2505.3,3.99142]
[1730443975751,4.80158,2505.9,2505.4,3.99134]
[1730443975926,0.8109,2505.9,2505.4,3.99137]
[1730443976128,0.8109,2505.9,2505.4,4.868129]
[1730443976533,4.80148,2505.9,2505.4,4.868129]
[1730443977265,8.7922,2505.9,2505.3,3.99142]
[1730443977427,8.7922,2505.9,2505.3,7.98287]
[1730443977623,4.80148,2505.9,2505.3,3.99142]
[1730443977861,4.80148,2505.9,2505.4,3.99132]
[1730443978063,4.80148,2505.9,2505.3,3.99142]
[1730443978361,4.80148,2505.9,2505.4,3.99135]
[1730443980265,3.99074,2505.8,2505.3,5.45266153]
[1730443980729,4.80148,2505.9,2505.3,5.45266153]
[1730443981064,4.80148,2505.9,2505.4,0.87283415]
[1730443981379,4.80148,2505.9,2505.5,0.57434686]
[1730443981580,4.80148,2505.9,2505.6,0.57434686]
[1730443981747,4.80148,2505.9,2505.7,0.32463083]
[1730443982075,5.281628,2505.9,2505.8,0.32463083]
[1730443982945,1.291048,2505.9,2505.8,4.31537083]
[1730443983244,3.0,2506.3,2505.8,0.32461744]
[1730443983245,4.77575,2506.2,2505.8,0.32461744]
[1730443983445,4.77575,2506.2,2505.9,0.32461744]
[1730443983446,0.7855,2506.2,2505.9,0.32461744]
[1730443983650,0.7855,2506.2,2506.0,0.32461744]
[1730443983881,4.7757,2506.2,2506.1,0.12485286]
[1730443984076,3.99034,2506.1,2505.5,4.82339994]
[1730443984382,3.99034,2506.1,2505.6,0.90316995]
[1730443984587,3.99034,2506.1,2505.7,0.87318072]
[1730443984759,3.99034,2506.1,2505.8,0.57430008]
[1730443984959,3.99034,2506.1,2505.9,0.57430008]
[1730443985186,0.7591,2505.9,2505.7,0.29889004]
[1730443985483,0.7591,2505.9,2505.8,0.57430413]
[1730443986878,4.74944,2506.1,2505.8,0.57430413]
[1730443987186,3.99012,2506.2,2505.9,0.32460668]
[1730443987348,3.99012,2506.2,2506.0,0.32460668]
[1730443987548,3.99012,2506.2,2506.1,0.12484872]
[1730443988050,3.99012,2506.2,2505.7,0.7891]
[1730443988051,3.99026,2506.1,2505.7,0.7891]
[1730443988261,3.99026,2506.1,2505.8,0.57427578]
[1730443988465,3.99026,2506.1,2505.9,0.32459066]
[1730443988651,3.99026,2506.1,2506.0,0.32459066]
[1730443989191,4.74915,2506.3,2506.0,0.32459066]
[1730443989386,3.9902,2506.2,2506.1,0.12484256]
[1730443991061,5.85909428,2506.3,2506.1,0.12484256]
[1730443991401,0.8168,2506.6,2506.2,0.32457403]
[1730443991572,0.8168,2506.6,2506.3,0.32457239]
[1730443991770,3.98963,2506.5,2506.4,0.12484256]
[1730443992761,0.8168,2506.6,2506.4,0.12484256]
[1730443993064,4.80638,2506.6,2506.5,0.12484256]
[1730443995698,4.80638,2506.6,2506.5,0.12482434]
[1730443996258,4.80638,2506.6,2506.2,0.19972236]
[1730443996557,4.80638,2506.6,2506.3,0.32454673]
[1730443996761,4.80638,2506.6,2506.4,0.12482437]
[1730443996965,0.8168,2506.6,2506.5,0.12482437]
[1730443997373,0.8168,2506.6,2506.2,0.1997173]
[1730443997564,0.8168,2506.6,2506.3,0.3245407]
[1730443997763,0.8168,2506.6,2506.4,0.1248234]
[1730443997964,4.80626,2506.6,2506.1,4.89571993]
[1730443998195,4.80626,2506.6,2506.2,0.32454093]